Cogmind - Beta 14 @@@ ROGUE MODE // 2024.08.30 @ 02:51:05 Player: Some Pennies Result: Destroyed by G-34 Mercenary with Small Laser Performance ------------- Evolutions (0) 0 Regions Visited (1) 200 Robots Destroyed (8) 40 Value Destroyed (149) 149 Prototype IDs (0) 0 Alien Tech Used (0) 0 Bonus (0) 0 TOTAL SCORE: 389 Bonus ------- None Cogmind --------- Core Integrity 0/250 Matter 300/300 Energy 92/100 System Corruption 0% Temperature Danger (429) Movement Core (400) Ox7 Location -10/Materials Parts ------- > --- POWER (1) -------- (None) > --- PROPULSION (2) --- (None) > --- UTILITY (2) ------ Large Storage Unit Seismic Detector > --- WEAPON (2) ------- EM Pulse Gun > --- INVENTORY (15) --- Light Ion Engine Light Ion Engine Medium Storage Unit Improved Terrain Scanner ECM Suite Peak State ------------ > --- POWER ------------ Light Ion Engine > --- PROPULSION ------- Light Treads Light Treads > --- UTILITY ---------- Small Storage Unit Improved Terrain Scanner > --- WEAPON ----------- Medium Laser Light Assault Rifle > --- INVENTORY -------- Light Ion Engine EM Pulse Gun [Rating: 9] Favorites ----------- Power Light Ion Engine Engine Light Ion Engine Propulsion Light Treads Treads Light Treads Leg Aluminum Leg Utility Seismic Detector Device Seismic Detector Storage Large Storage Unit Weapon Medium Laser Energy Gun Medium Laser Ballistic Gun Light Assault Rifle Special Weapon Mining Laser Build | -11 -10 ------- Run | Yrd Mat Slots Evolved . | . . Power . | . . Propulsion . | . . Utility . | . . Weapon . | . . Parts Attached 7 | 4 3 Power . | . . Engine . | . . Core . | . . Reactor . | . . Propulsion 2 | 2 . Treads 2 | 2 . Leg . | . . Wheel . | . . Hover . | . . Flight . | . . Utility 3 | 2 1 Device 2 | 2 . Storage 1 | . 1 Processor . | . . Hackware . | . . Protection . | . . Artifact . | . . Weapon 2 | . 2 Energy Gun 1 | . 1 Energy Cannon . | . . Ballistic Gun . | . . Ballistic Cannon . | . . Launcher . | . . Special Weapon 1 | . 1 Impact Weapon . | . . Slashing Weapon . | . . Piercing Weapon . | . . Special Melee Weapon . | . . Unidentified Prototypes . | . . Parts Lost 6 | . 6 Power 1 | . 1 Propulsion 2 | . 2 Utility . | . . Weapon 3 | . 3 Highest Loss Streak 6 | . 6 To Critical Strikes . | . . Average Slot Usage (%) 97 | . 97 Engine 13 | . 13 Treads 27 | . 27 Device 14 | . 14 Storage 14 | . 14 Energy Gun 13 | . 13 Ballistic Gun 13 | . 13 Peak Build Rating 9 | 9 7 Average Rating 6 | 7 6 On Entrance 6 | 6 7 Naked Turns . | . . Heaviest Build 27 | 12 27 Greatest Support 40 | 40 40 Greatest Overweight (x) 7 | . 7 Average Overweight (x) . | . . Largest Inventory Capacity 15 | 8 15 Average Capacity 12 | 8 13 Most Carried 7 | 6 7 Average Carried 5 | 2 6 Final Capacity 15 | 8 15 Final Carried 5 | 5 5 Class Distribution -------------------- 100% | Mutant Dominant Class ---------------- Mutant | -10/Materials Resources | -11 -10 ----------- Run | Yrd Mat Matter Collected 338 | 252 86 Remotely . | . . Salvage Created 303 | 167 136 Parts 20 | 14 6 Haulers Intercepted . | . . Recyclers Shooed 1 | 1 . Parts Field Recycled . | . . Retrieved Matter . | . . Parts Self-Destructed . | . . Prevented . | . . Kills | -11 -10 ------- Run | Yrd Mat Combat Hostiles Destroyed 3 | . 3 Guns 3 | . 3 Classes Destroyed 3 | 2 1 Tunneler 4 | 4 . Recycler 1 | 1 . Grunt 3 | . 3 Best Kill Streak 3 | 3 1 Combat Bots Only 1 | . 1 Max Kills in Single Turn 1 | 1 1 Gunslinging . | . . Exploded . | . . Melee . | . . Uniques/NPCs Destroyed . | . . Combat | -11 -10 -------- Run | Yrd Mat Hostile Shots Fired 78 | . 78 Missed 9 | . 9 Damage Taken 868 | . 868 Core 258 | . 258 Absorbed by Shields . | . . Core Remaining (%) 100 | 100 . Volleys Fired 36 | 12 24 Largest 2 | 2 2 Hottest 70 | 70 70 Shots Fired 69 | 24 45 Gun 69 | 24 45 Cannon . | . . Launcher . | . . Special . | . . Kinetic 33 | 12 21 Thermal 36 | 12 24 Explosive . | . . Electromagnetic . | . . Robot Hit Streak 9 | 5 9 Robot Miss Streak 3 | 2 3 Penetration Max . | . . Secondary Targets 1 | . 1 Max Gunslinging Chain 1 | . 1 Shots Hit Robots 47 | 16 31 Core Hits 17 | 8 9 Critical Kills . | . . Critical Parts Destroyed . | . . Critical Strikes 4 | 2 2 Burn 4 | 2 2 Melee Attacks . | . . Impact . | . . Slashing . | . . Piercing . | . . Sneak Attacks . | . . Combat Hostiles . | . . Follow-up Attacks . | . . Damage Inflicted 475 | 165 310 Guns 475 | 165 310 Cannons . | . . Explosions . | . . Melee . | . . Ramming . | . . Kinetic 199 | 64 135 Thermal 276 | 101 175 Explosive . | . . Electromagnetic . | . . Impact . | . . Slashing . | . . Piercing . | . . Highest Corruption . | . . Average Corruption . | . . Corruption Purged . | . . Corruption Blocked . | . . Overload Shots . | . . Overflow Damage . | . . Projectiles . | . . Explosions . | . . Melee . | . . Knockbacks . | . . Impact . | . . Kinetic . | . . Secondary . | . . Self-Inflicted Damage . | . . Shots . | . . Rammed . | . . Targets Rammed . | . . Kicked . | . . Crushed . | . . Highest Temperature 527 | 100 527 Average Temperature 156 | 45 215 Received Heat Transfer 495 | . 495 Effects 8 | . 8 Shutdowns 1 | . 1 Interference 1 | . 1 Matter Decay 1 | . 1 Damage (minor) 2 | . 2 Damage (major) 3 | . 3 Siege Activations . | . . Robots Corrupted . | . . Combat Hostiles . | . . Parts Fried . | . . Impact Corruptions . | . . Robots Melted . | . . Combat Hostiles . | . . Parts Melted 1 | . 1 Heat Transferred 1110 | 444 666 Parts Sabotaged . | . . Parts Stolen . | . . Parts Stripped . | . . Power Chain Reactions . | . . Alert | -11 -10 ------- Run | Yrd Mat Peak Influence 82 | 25 82 Initial 16 | . 16 Average 25 | 13 29 Maximum Alert Level . | . . Low Security (%) 100 | 100 100 Level 1 . | . . Level 2 . | . . Level 3 . | . . Level 4 . | . . Level 5 . | . . High Security . | . . Max Security . | . . Squads Dispatched 2 | . 2 Investigation 1 | . 1 Extermination . | . . Reinforcement 1 | . 1 Assault . | . . Garrison . | . . Intercept . | . . Searches Triggered . | . . Construction Impeded . | . . Haulers Reinforced . | . . Active Scanning Responses . | . . Cargo Convoy Interrupts . | . . Stealth | -11 -10 --------- Run | Yrd Mat Distress Signals 3 | . 3 Communications Jammed . | . . Distress Signals . | . . Times Spotted 9 | . 9 Peak Tracking Total 6 | . 6 Tactical Retreats . | . . Traps | -11 -10 ------- Run | Yrd Mat Traps Triggered . | . . Indirectly . | . . Trap Hack Attempts . | . . Triggered . | . . Disarmed . | . . Reprogrammed . | . . Reused . | . . Traps Extracted . | . . Installed . | . . Triggered . | . . Machines | -11 -10 ---------- Run | Yrd Mat Machines Disabled . | . . Max in Single Turn . | . . Machines Repaired . | . . Machines Dismantled . | . . Machines Sabotaged . | . . Overloaded Fab Kills . | . . Hacking | -11 -10 --------- Run | Yrd Mat Machines Accessed 1 | . 1 Terminals . | . . Fabricators . | . . Repair Stations . | . . Recycling Units 1 | . 1 Scanalyzers . | . . Garrison Access . | . . Total Hacks 3 | . 3 Successful . | . . Failed 3 | . 3 Catastrophic . | . . Database Lockouts . | . . Manual 2 | . 2 Terminals . | . . Fabricators . | . . Repair Stations . | . . Recycling Units 3 | . 3 Scanalyzers . | . . Garrison Access . | . . Terminal Hacks . | . . Fabricator Hacks . | . . Repair Station Hacks . | . . Recycling Unit Hacks . | . . Scanalyzer . | . . Garrison Access Hacks . | . . Unauthorized Hacks . | . . Terminals . | . . Fabricators . | . . Repair Stations . | . . Recycling Units . | . . Scanalyzers . | . . Garrison Access . | . . Data Cores Recovered . | . . Used . | . . Hacking Detections 1 | . 1 Full Trace Events 1 | . 1 Feedback Events . | . . Feedback Blocked . | . . Robot Schematics Acquired . | . . Robots Built . | . . Authchips . | . . Time . | . . Total Robot Build Rating . | . . Part Schematics Acquired . | . . Parts Built . | . . Authchips . | . . Time . | . . Total Part Build Rating . | . . Parts Repaired . | . . Time . | . . Parts Recycled . | . . Recycled Matter . | . . Retrieved Matter . | . . Retrieved Components . | . . Parts Scanalyzed . | . . Part Schematics Acquired . | . . Parts Damaged . | . . Bothacking | -11 -10 ------------ Run | Yrd Mat Used RIF Installer . | . . Robots Hacked . | . . Non-combat . | . . Combat . | . . Robot Hacks Applied . | . . Relay Couplers Released . | . . Fabnet Peak Effective % . | . . Robots Rewired . | . . Allies Hacked . | . . Hacks Repelled . | . . Allies | -11 -10 -------- Run | Yrd Mat Total Allies . | . . Largest Group . | . . Highest-Rated Group . | . . Highest-Rated Ally . | . . Total Orders . | . . Ally Attacks . | . . Total Damage . | . . Kills . | . . Allies Corrupted . | . . Allies Melted . | . . Intel | -11 -10 ------- Run | Yrd Mat Robot Analysis Total . | . . Derelict Logs Recovered . | . . Drone Launches . | . . Drone Recoveries . | . . Exploration | -11 -10 ------------- Run | Yrd Mat Turns Passed 417 | 99 318 Spaces Moved 179 | 35 144 Core 2 | . 2 Treads 177 | 35 142 Legs . | . . Wheels . | . . Hover . | . . Flight . | . . Fastest Speed 160 | 160 160 Average Speed 162 | 160 163 Slowest Speed 400 | 160 400 Overloaded Moves . | . . Propulsion Burnouts . | . . Robots Hopped . | . . Cave-ins Triggered . | . . Exploration Rate (%) 16 | 3 30 Regions Visited 1 Branch Regions . Pre-discovered Areas . | . . Known Exits Taken . | . . Unknown Exits Taken 1 | 1 . Scrap Searched . | . . Spaces Dug . | . . Terrain Destroyed . | . . Melee . | . . Projectile . | . . AOE . | . . Terrain Rammed . | . . Walls Destroyed . | . . Machines Disabled . | . . Actions | -11 -10 --------- Run | Yrd Mat Total 245 | 57 188 Wait 14 | . 14 Move 178 | 34 144 Hop . | . . Pick Up 4 | 2 2 Fast Attach 2 | 2 . Attach 2 | . 2 Detach 1 | 1 . Swap 3 | 2 1 Drop 5 | 4 1 Fire 36 | 12 24 Melee . | . . Ram . | . . Kick . | . . Crush . | . . Escape Stasis . | . . Rewire . | . . Trap . | . . Miscellaneous . | . . Route ------- -11/Scrapyard -10/Materials History --------- Turn | Location | Event 15 | -11/Scrapyard | Discovered new exit (range 2) 100 | -11/Scrapyard | Entered Materials 306 | -10/Materials | Build established: Mutant 407 | -10/Materials | Core integrity fell below 50% 415 | -10/Materials | Core integrity fell below 20% 418 | -10/Materials | Destroyed by G-34 Mercenary with Small Laser Last Messages --------------- 00404_ G-47 Trooper destroyed. 00405_ K-01 Serf collects debris. 00405_ R-06 Scavenger collects Aluminum Leg. 00405_ Lgt. Treads destroyed. 00407_ Overheating: Med. Laser damaged (-18). 00408_ K-01 Serf collects debris. 00409_ Overheating: Seismic Detector damaged (-10). 00409_ Overheating: Lrg. Storage Unit damaged (-81). 00409_ Overheating: Med. Laser damaged (-19). 00409_ Med. Laser destroyed. 00410_ Overheating: System interference. 00410_ Seismic Detector temporarily disabled. 00411_ Overheating: Seismic Detector damaged (-7). 00412_ K-01 Serf collects debris. 00412_ Acquired 70 matter. 00414_ U-05 Engineer builds a Door. 00416_ Mining Laser destroyed. Map ----- +----------------------------------------------------+ | ?????###### ??????# # #???# #??? | | ??????????#???????# # #???# #??? | | ??????????????????# # #???# #??? | | ??????????????????# # ##### #??? | | ??????????????????# + ##+#### | | ??????????????????# # ##### ## # | | ??????????????????# # ###???# ## # | | ??????????????????# # #????## ## # | | ??????????????????+ # #????# # # | | ??????????????????##########+###### + # | | ??????????????????????# # # # | | ??????????????????????#""" """ ##### # | | ??????????????????????#"Y """ #???# # | | ??????????????????????#""" """ #???# # | | ??????????????????????# """ #???###### | | ??????????????????????# ^""" #????????? | | ??????????????????????# #????????? | | ??????????????????????####+########????????? | | ??????????????????####### #??????????????? | | ??????????????????# =+ #??????????????? | | ??????????????????# %# #??????????????? | | ??????????????????# # #??????????????? | | ??????????????????# # #??????????????? | | ??????????????????####### #??????????????? | | ???????????????????????##%= ##?????????????? | | ???????????????????????# @gg #?????????????? | | ???????????????????? #?????????????? | | ???????????????? /g u+ ????????????? | | ???????????? # ""??????????? | | ???????????############# # ?????????? | | ???????????????????????## g ##?####????????? | | ????????????????????????# #??????????????? | | ????????????????????????# #??????????????? | | ????????????????????????# +??????????????? | | ????????????????????????? #??????????????? | | ????????????????????????? #??????????????? | | ?????????????????????????^^w#??????????????? | | ????????????????????????? ??????????????? | | ????????????????????????? ??????????????? | | ????????????????????????? ??????????????? | | ????????????????????????? ???????????????? | | ???????????????????????????????????????????? | | ???????????????????????????????????????????? | | ???????????????????????????????????????????? | | ???????????????????????????????????????????? | | ???????????????????????????????????????????? | | ???????????????????????????????????????????? | | ???????????????????????????????????????????? | | ???????????????????????????????????????????? | | ???????????????????????????????????????????? | +----------------------------------------------------+ Best States ------------- Heat Dissipation 25 Energy Generation 10 Energy Capacity 125 Matter Stores 300 Matter Capacity 300 Sight Range 16 Terrain Scan Range 16 Terrain Scan Density 10 Evasion (%) 40 Recoil Reduction 2 Item Schematics ----------------- None Robot Schematics ------------------ None Fabricated ------------ Nothing Alien Tech Used ----------------- None Achievements -------------- None Challenges ------------ None Game ------ Seed ThermicFusionDissipator Manual? 0 Play Time 00:03:38 Cumulative 270.8 hours Start 2024.08.30 @ 02:48:55 End 2024.08.30 @ 02:51:05 Sessions 1 Manual Loads 0 Difficulty Rogue Special Mode None Game No. 210 Rogue 205 Adventurer 5 Explorer 0 Win Type - Total 6 Types 4/0/2/0/0/0/0/0/0 Lore% 64 Gallery% 83 Achievement% 66 Wizard Run 0 Options --------- Layout 2 ASCII 0 Keyboard 0 Movement Mouse Keybinds 0 Fullscreen 2 Font 24/Smallcaps Map View 50x44 Zoom Use 0% Tactical HUD 1 Map Filters NONE Filters NONE Steam 1 RUN: 5f844c16-05d4-41d2-932b-c330b98469ef